[Event "December 12 Late 2023"]
[Site "https://www.chess.com"]
[Date "2023.12.12"]
[Round "9"]
[White "Urbina Perez, Juan Antonio"]
[Black "Rama, Tejas"]
[Result "0-1"]
[Board "62"]
[TimeControl "180+1"]
[WhiteFideId "2217368"]
[BlackFideId "30907381"]
[WhiteElo "2444"]
[BlackElo "2529"]
[WhiteTeam "ESP"]
[BlackTeam "USA"]
[WhiteClock "0:00:49"]
[BlackClock "0:00:13"]

1. d4 {[%clk 0:02:56]}  Nf6 {[%clk 0:02:59]} 2. c4 {[%clk 0:02:56]}  e6 {[%clk 0:02:56]} 3. Nf3 {[%clk 0:02:56]}  d5 {[%clk 0:02:55]} 4. g3 {[%clk 0:02:56]}  dxc4 {[%clk 0:02:53]} 5. Bg2 {[%clk 0:02:55]}  c5 {[%clk 0:02:53]} 6. O-O {[%clk 0:02:53]}  Nc6 {[%clk 0:02:53]} 7. dxc5 {[%clk 0:02:52]}  Qxd1 {[%clk 0:02:52]} 8. Rxd1 {[%clk 0:02:53]}  Bxc5 {[%clk 0:02:52]} 9. Nbd2 {[%clk 0:02:52]}  c3 {[%clk 0:02:53]} 10. bxc3 {[%clk 0:02:53]}  O-O {[%clk 0:02:52]} 11. Nb3 {[%clk 0:02:54]}  Be7 {[%clk 0:02:52]} 12. Nbd4 {[%clk 0:02:54]}  Nxd4 {[%clk 0:02:50]} 13. cxd4 {[%clk 0:02:55]}  Nd5 {[%clk 0:02:18]} 14. Bd2 {[%clk 0:02:50]}  f5 {[%clk 0:02:17]} 15. Ne5 {[%clk 0:02:48]}  b6 {[%clk 0:02:10]} 16. Rac1 {[%clk 0:02:42]}  Ba6 {[%clk 0:02:09]} 17. e3 {[%clk 0:02:35]}  Rfc8 {[%clk 0:02:06]} 18. Bxd5 {[%clk 0:02:30]}  exd5 {[%clk 0:02:05]} 19. Rxc8+ {[%clk 0:02:30]}  Rxc8 {[%clk 0:02:06]} 20. Rc1 {[%clk 0:02:30]}  Rxc1+ {[%clk 0:02:02]} 21. Bxc1 {[%clk 0:02:31]}  Bb5 {[%clk 0:02:02]} 22. f4 {[%clk 0:02:25]}  Bb4 {[%clk 0:01:54]} 23. Nf3 {[%clk 0:02:14]}  Kf8 {[%clk 0:01:49]} 24. Kf2 {[%clk 0:02:11]}  Ke7 {[%clk 0:01:47]} 25. a3 {[%clk 0:02:11]}  Bc3 {[%clk 0:01:44]} 26. Bd2 {[%clk 0:02:08]}  Bb2 {[%clk 0:01:39]} 27. Bb4+ {[%clk 0:02:07]}  Ke8 {[%clk 0:01:34]} 28. Ke1 {[%clk 0:02:06]}  a5 {[%clk 0:01:33]} 29. Bd6 {[%clk 0:02:06]}  Bc1 {[%clk 0:01:07]} 30. Nd2 {[%clk 0:02:00]}  Ba4 {[%clk 0:00:52]} 31. Ke2 {[%clk 0:01:52]}  Kd7 {[%clk 0:00:52]} 32. Bf8 {[%clk 0:01:51]}  g6 {[%clk 0:00:52]} 33. Nf3 {[%clk 0:01:46]}  Ke8 {[%clk 0:00:44]} 34. Bd6 {[%clk 0:01:45]}  Kd7 {[%clk 0:00:44]} 35. Bf8 {[%clk 0:01:45]}  Bb3 {[%clk 0:00:36]} 36. Ne5+ {[%clk 0:01:40]}  Ke6 {[%clk 0:00:33]} 37. Nd3 {[%clk 0:01:40]}  Bc4 {[%clk 0:00:31]} 38. h3 {[%clk 0:01:35]}  Kd7 {[%clk 0:00:30]} 39. g4 {[%clk 0:01:30]}  Kc6 {[%clk 0:00:27]} 40. gxf5 {[%clk 0:01:28]}  gxf5 {[%clk 0:00:27]} 41. a4 {[%clk 0:01:05]}  b5 {[%clk 0:00:20]} 42. Kd1 {[%clk 0:01:06]}  Bxe3 {[%clk 0:00:16]} 43. Ne5+ {[%clk 0:01:06]}  Kb6 {[%clk 0:00:14]} 44. Bc5+ {[%clk 0:01:06]}  Ka6 {[%clk 0:00:14]} 45. axb5+ {[%clk 0:01:05]}  Kxb5 {[%clk 0:00:14]} 46. Nf7 {[%clk 0:01:00]}  Bxf4 {[%clk 0:00:14]} 47. Nd6+ {[%clk 0:01:00]}  Bxd6 {[%clk 0:00:14]} 48. Bxd6 {[%clk 0:01:01]}  Bf1 {[%clk 0:00:12]} 49. h4 {[%clk 0:00:56]}  Kc4 {[%clk 0:00:12]} 50. Be5 {[%clk 0:00:56]}  Kc3 {[%clk 0:00:12]} 51. Ke1 {[%clk 0:00:56]}  Bd3 {[%clk 0:00:12]} 52. Kf2 {[%clk 0:00:56]}  a4 {[%clk 0:00:13]} 53. Bd6 {[%clk 0:00:53]}  Kb3 {[%clk 0:00:13]} 54. Ke3 {[%clk 0:00:49]}  Be4 {[%clk 0:00:13]} 0-1

[Event "December 12 Late 2023"]
[Site "https://www.chess.com"]
[Date "2023.12.12"]
[Round "9"]
[White "Shapiro, Viktor"]
[Black "Zakarian, David"]
[Result "1-0"]
[Board "64"]
[TimeControl "180+1"]
[WhiteFideId "4175700"]
[BlackFideId "13301276"]
[WhiteElo "2518"]
[BlackElo "2419"]
[WhiteTeam "RUS"]
[BlackTeam "ARM"]
[WhiteClock "0:00:12"]
[BlackClock "0:00:17"]

1. c4 {[%clk 0:03:00]}  Nf6 {[%clk 0:02:57]} 2. Nc3 {[%clk 0:03:00]}  g6 {[%clk 0:02:56]} 3. Nf3 {[%clk 0:03:00]}  Bg7 {[%clk 0:02:56]} 4. d4 {[%clk 0:03:01]}  O-O {[%clk 0:02:56]} 5. Bg5 {[%clk 0:03:01]}  b6 {[%clk 0:02:55]} 6. e4 {[%clk 0:02:53]}  h6 {[%clk 0:02:53]} 7. Bh4 {[%clk 0:02:52]}  Bb7 {[%clk 0:02:50]} 8. Bd3 {[%clk 0:02:46]}  d6 {[%clk 0:02:46]} 9. O-O {[%clk 0:02:44]}  Nc6 {[%clk 0:02:33]} 10. d5 {[%clk 0:02:43]}  Nb4 {[%clk 0:02:29]} 11. Bb1 {[%clk 0:02:37]}  a5 {[%clk 0:02:29]} 12. Re1 {[%clk 0:02:36]}  Bc8 {[%clk 0:02:28]} 13. h3 {[%clk 0:02:34]}  e5 {[%clk 0:02:18]} 14. dxe6 {[%clk 0:02:25]}  Bxe6 {[%clk 0:02:18]} 15. Qe2 {[%clk 0:02:06]}  Qc8 {[%clk 0:02:05]} 16. a3 {[%clk 0:01:58]}  Na6 {[%clk 0:01:57]} 17. Nd5 {[%clk 0:01:53]}  Nxd5 {[%clk 0:01:49]} 18. cxd5 {[%clk 0:01:53]}  Bd7 {[%clk 0:01:49]} 19. Ra2 {[%clk 0:01:40]}  a4 {[%clk 0:01:49]} 20. Qc4 {[%clk 0:01:16]}  Re8 {[%clk 0:01:37]} 21. b4 {[%clk 0:01:00]}  axb3 {[%clk 0:01:34]} 22. Qxb3 {[%clk 0:01:00]}  Nc5 {[%clk 0:01:35]} 23. Qd1 {[%clk 0:00:52]}  Qa6 {[%clk 0:01:20]} 24. Nd4 {[%clk 0:00:40]}  Qc4 {[%clk 0:01:11]} 25. Rd2 {[%clk 0:00:39]}  Rxa3 {[%clk 0:01:07]} 26. Bg3 {[%clk 0:00:29]}  Ba4 {[%clk 0:00:54]} 27. Bc2 {[%clk 0:00:25]}  Bxc2 {[%clk 0:00:46]} 28. Nxc2 {[%clk 0:00:22]}  Ra2 {[%clk 0:00:40]} 29. Ne3 {[%clk 0:00:15]}  Rxd2 {[%clk 0:00:40]} 30. Qxd2 {[%clk 0:00:16]}  Qxe4 {[%clk 0:00:38]} 31. Nc2 {[%clk 0:00:16]}  f5 {[%clk 0:00:31]} 32. Rxe4 {[%clk 0:00:16]}  Nxe4 {[%clk 0:00:32]} 33. Qd3 {[%clk 0:00:14]}  f4 {[%clk 0:00:29]} 34. Bxf4 {[%clk 0:00:14]}  g5 {[%clk 0:00:27]} 35. Be3 {[%clk 0:00:15]}  Nf6 {[%clk 0:00:26]} 36. Nd4 {[%clk 0:00:13]}  Ra8 {[%clk 0:00:25]} 37. Ne6 {[%clk 0:00:12]}  Ra1+ {[%clk 0:00:23]} 38. Kh2 {[%clk 0:00:12]}  Nd7 {[%clk 0:00:17]} 39. Qg6 {[%clk 0:00:12]} 1-0

[Event "December 12 Late 2023"]
[Site "https://www.chess.com"]
[Date "2023.12.12"]
[Round "9"]
[White "Reprintsev, Alexander"]
[Black "Storn, Justin"]
[Result "1-0"]
[Board "66"]
[TimeControl "180+1"]
[WhiteFideId "14100541"]
[BlackFideId "30922720"]
[WhiteElo "2513"]
[BlackElo "2376"]
[WhiteTeam "UKR"]
[BlackTeam "USA"]
[WhiteClock "0:01:04"]
[BlackClock "0:00:02"]

1. e4 {[%clk 0:02:56]}  c6 {[%clk 0:02:57]} 2. Nf3 {[%clk 0:02:55]}  d5 {[%clk 0:02:58]} 3. Nc3 {[%clk 0:02:55]}  dxe4 {[%clk 0:02:58]} 4. Nxe4 {[%clk 0:02:55]}  Nf6 {[%clk 0:02:59]} 5. Qe2 {[%clk 0:02:54]}  e6 {[%clk 0:02:45]} 6. d4 {[%clk 0:02:52]}  Nbd7 {[%clk 0:02:43]} 7. Bd2 {[%clk 0:02:51]}  Qb6 {[%clk 0:02:40]} 8. O-O-O {[%clk 0:02:50]}  Nxe4 {[%clk 0:02:40]} 9. Qxe4 {[%clk 0:02:50]}  Nf6 {[%clk 0:02:41]} 10. Qd3 {[%clk 0:02:49]}  Be7 {[%clk 0:02:39]} 11. Ne5 {[%clk 0:02:45]}  O-O {[%clk 0:02:33]} 12. Be2 {[%clk 0:02:41]}  c5 {[%clk 0:02:33]} 13. Nc4 {[%clk 0:02:38]}  Qc7 {[%clk 0:02:30]} 14. g3 {[%clk 0:02:29]}  cxd4 {[%clk 0:02:26]} 15. Bf4 {[%clk 0:02:29]}  Qc5 {[%clk 0:02:14]} 16. Qxd4 {[%clk 0:02:27]}  Qxd4 {[%clk 0:02:09]} 17. Rxd4 {[%clk 0:02:27]}  Nd5 {[%clk 0:02:08]} 18. Bd6 {[%clk 0:02:19]}  Bf6 {[%clk 0:01:51]} 19. Rxd5 {[%clk 0:02:13]}  exd5 {[%clk 0:01:45]} 20. Bxf8 {[%clk 0:02:13]}  Kxf8 {[%clk 0:01:45]} 21. Ne3 {[%clk 0:02:09]}  Be6 {[%clk 0:01:33]} 22. Rd1 {[%clk 0:02:05]}  d4 {[%clk 0:01:32]} 23. Ng4 {[%clk 0:01:59]}  Bxg4 {[%clk 0:01:26]} 24. Bxg4 {[%clk 0:01:59]}  b6 {[%clk 0:01:15]} 25. Rd3 {[%clk 0:01:57]}  Ke7 {[%clk 0:01:12]} 26. Ra3 {[%clk 0:01:54]}  a5 {[%clk 0:01:10]} 27. Rb3 {[%clk 0:01:54]}  Rb8 {[%clk 0:01:10]} 28. Rb5 {[%clk 0:01:54]}  Kd6 {[%clk 0:01:10]} 29. a4 {[%clk 0:01:53]}  Kc7 {[%clk 0:01:06]} 30. Kd2 {[%clk 0:01:52]}  Rd8 {[%clk 0:01:03]} 31. Be2 {[%clk 0:01:51]}  Be7 {[%clk 0:00:50]} 32. Bc4 {[%clk 0:01:48]}  Bc5 {[%clk 0:00:47]} 33. Rb3 {[%clk 0:01:44]}  f6 {[%clk 0:00:47]} 34. Rf3 {[%clk 0:01:43]}  Re8 {[%clk 0:00:37]} 35. g4 {[%clk 0:01:41]}  Re5 {[%clk 0:00:33]} 36. h4 {[%clk 0:01:41]}  h6 {[%clk 0:00:34]} 37. Rg3 {[%clk 0:01:36]}  Bd6 {[%clk 0:00:27]} 38. Rg1 {[%clk 0:01:36]}  Re4 {[%clk 0:00:26]} 39. Bd3 {[%clk 0:01:35]}  Rf4 {[%clk 0:00:23]} 40. Ke2 {[%clk 0:01:35]}  g5 {[%clk 0:00:20]} 41. h5 {[%clk 0:01:34]}  Bc5 {[%clk 0:00:18]} 42. f3 {[%clk 0:01:34]}  Kd6 {[%clk 0:00:18]} 43. Rd1 {[%clk 0:01:30]}  Ke5 {[%clk 0:00:18]} 44. Be4 {[%clk 0:01:29]}  Kd6 {[%clk 0:00:09]} 45. Kd3 {[%clk 0:01:30]}  Ke5 {[%clk 0:00:09]} 46. Re1 {[%clk 0:01:24]}  Kd6 {[%clk 0:00:10]} 47. Bb7 {[%clk 0:01:24]}  Kc7 {[%clk 0:00:10]} 48. Ba8 {[%clk 0:01:23]}  Kd7 {[%clk 0:00:08]} 49. Re2 {[%clk 0:01:16]}  Bb4 {[%clk 0:00:08]} 50. Be4 {[%clk 0:01:08]}  Bc5 {[%clk 0:00:08]} 51. Kc4 {[%clk 0:01:06]}  Kc7 {[%clk 0:00:08]} 52. Kd5 {[%clk 0:01:05]}  Kd7 {[%clk 0:00:08]} 53. Rd2 {[%clk 0:01:04]}  Kc7 {[%clk 0:00:08]} 54. Ke6 {[%clk 0:01:04]}  Kc8 {[%clk 0:00:08]} 55. Rd3 {[%clk 0:01:04]}  Kc7 {[%clk 0:00:08]} 56. Bf5 {[%clk 0:01:05]}  Kc6 {[%clk 0:00:07]} 57. Kxf6 {[%clk 0:01:05]}  Kd5 {[%clk 0:00:06]} 58. Kg6 {[%clk 0:01:05]}  Kc4 {[%clk 0:00:05]} 59. Kxh6 {[%clk 0:01:05]}  Be7 {[%clk 0:00:02]} 60. Kg6 {[%clk 0:01:04]} 1-0

[Event "December 12 Late 2023"]
[Site "https://www.chess.com"]
[Date "2023.12.12"]
[Round "9"]
[White "Flash_BJ"]
[Black "Rees, Ioan"]
[Result "0-1"]
[Board "68"]
[TimeControl "180+1"]
[BlackFideId "1801236"]
[WhiteElo "2239"]
[BlackElo "2525"]
[BlackTeam "WLS"]
[WhiteClock "0:00:00"]
[BlackClock "0:00:21"]

1. Nf3 {[%clk 0:02:53]}  d5 {[%clk 0:02:59]} 2. c4 {[%clk 0:02:53]}  c6 {[%clk 0:02:59]} 3. b3 {[%clk 0:02:52]}  Nf6 {[%clk 0:02:55]} 4. Bb2 {[%clk 0:02:52]}  Bf5 {[%clk 0:02:53]} 5. g3 {[%clk 0:02:51]}  h6 {[%clk 0:02:53]} 6. Bg2 {[%clk 0:02:51]}  e6 {[%clk 0:02:53]} 7. O-O {[%clk 0:02:51]}  Nbd7 {[%clk 0:02:52]} 8. d3 {[%clk 0:02:52]}  Be7 {[%clk 0:02:49]} 9. a3 {[%clk 0:02:51]}  O-O {[%clk 0:02:49]} 10. Nbd2 {[%clk 0:02:49]}  Qb6 {[%clk 0:02:42]} 11. Qc2 {[%clk 0:02:45]}  a5 {[%clk 0:02:41]} 12. Ne5 {[%clk 0:02:02]}  Nxe5 {[%clk 0:02:32]} 13. Bxe5 {[%clk 0:02:01]}  Bh7 {[%clk 0:02:31]} 14. Nf3 {[%clk 0:01:54]}  Rfd8 {[%clk 0:02:22]} 15. Qb2 {[%clk 0:01:47]}  a4 {[%clk 0:02:10]} 16. b4 {[%clk 0:01:43]}  c5 {[%clk 0:02:06]} 17. cxd5 {[%clk 0:01:20]}  exd5 {[%clk 0:01:50]} 18. bxc5 {[%clk 0:01:18]}  Qxb2 {[%clk 0:01:48]} 19. Bxb2 {[%clk 0:01:19]}  Bxc5 {[%clk 0:01:48]} 20. Bd4 {[%clk 0:01:10]}  Be7 {[%clk 0:01:43]} 21. Rfb1 {[%clk 0:01:07]}  Rab8 {[%clk 0:01:36]} 22. Rb5 {[%clk 0:01:07]}  Bf5 {[%clk 0:01:29]} 23. Be5 {[%clk 0:01:03]}  Bd6 {[%clk 0:01:28]} 24. Bxd6 {[%clk 0:00:57]}  Rxd6 {[%clk 0:01:28]} 25. Rab1 {[%clk 0:00:57]}  b6 {[%clk 0:01:26]} 26. Nd4 {[%clk 0:00:53]}  Bd7 {[%clk 0:01:23]} 27. R5b4 {[%clk 0:00:53]}  g6 {[%clk 0:01:16]} 28. h3 {[%clk 0:00:51]}  Ne8 {[%clk 0:01:14]} 29. Rc1 {[%clk 0:00:51]}  Kg7 {[%clk 0:01:10]} 30. Nb5 {[%clk 0:00:47]}  Rc6 {[%clk 0:01:04]} 31. Rxc6 {[%clk 0:00:46]}  Bxc6 {[%clk 0:01:05]} 32. Nd4 {[%clk 0:00:45]}  Bd7 {[%clk 0:00:55]} 33. f4 {[%clk 0:00:38]}  Nc7 {[%clk 0:00:55]} 34. e4 {[%clk 0:00:35]}  dxe4 {[%clk 0:00:55]} 35. dxe4 {[%clk 0:00:36]}  b5 {[%clk 0:00:51]} 36. e5 {[%clk 0:00:32]}  Na6 {[%clk 0:00:49]} 37. Rb1 {[%clk 0:00:32]}  b4 {[%clk 0:00:48]} 38. Bf1 {[%clk 0:00:26]}  bxa3 {[%clk 0:00:45]} 39. Rxb8 {[%clk 0:00:19]}  Nxb8 {[%clk 0:00:44]} 40. Bc4 {[%clk 0:00:20]}  Nc6 {[%clk 0:00:30]} 41. Nc2 {[%clk 0:00:20]}  Na5 {[%clk 0:00:29]} 42. Nxa3 {[%clk 0:00:19]}  Nxc4 {[%clk 0:00:29]} 43. Nxc4 {[%clk 0:00:20]}  Bxh3 {[%clk 0:00:26]} 44. Kf2 {[%clk 0:00:20]}  Be6 {[%clk 0:00:25]} 45. Na3 {[%clk 0:00:19]}  g5 {[%clk 0:00:21]} 46. Kf3 {[%clk 0:00:19]}  Kg6 {[%clk 0:00:20]} 47. fxg5 {[%clk 0:00:18]}  Kxg5 {[%clk 0:00:21]} 48. Ke4 {[%clk 0:00:00]}  Kg4 {[%clk 0:00:21]} 0-1

[Event "December 12 Late 2023"]
[Site "https://www.chess.com"]
[Date "2023.12.12"]
[Round "9"]
[White "Akhayan, Ruben"]
[Black "Bardyk, Artem"]
[Result "1/2-1/2"]
[Board "69"]
[TimeControl "180+1"]
[WhiteFideId "204439"]
[BlackFideId "34349979"]
[WhiteElo "2392"]
[BlackElo "2696"]
[WhiteTeam "BEL"]
[BlackTeam "RUS"]
[WhiteClock "0:00:11"]
[BlackClock "0:00:06"]

1. e4 {[%clk 0:02:59]}  e5 {[%clk 0:02:59]} 2. d4 {[%clk 0:02:55]}  exd4 {[%clk 0:02:59]} 3. Nf3 {[%clk 0:02:56]}  Nc6 {[%clk 0:02:59]} 4. Nxd4 {[%clk 0:02:56]}  Bb4+ {[%clk 0:02:59]} 5. c3 {[%clk 0:02:56]}  Bc5 {[%clk 0:02:59]} 6. Nxc6 {[%clk 0:02:37]}  bxc6 {[%clk 0:02:58]} 7. Be2 {[%clk 0:02:32]}  d5 {[%clk 0:02:54]} 8. exd5 {[%clk 0:02:28]}  cxd5 {[%clk 0:02:55]} 9. O-O {[%clk 0:02:27]}  Nf6 {[%clk 0:02:55]} 10. Bg5 {[%clk 0:02:26]}  O-O {[%clk 0:02:54]} 11. Nd2 {[%clk 0:02:24]}  Rb8 {[%clk 0:02:47]} 12. Nb3 {[%clk 0:02:24]}  Be7 {[%clk 0:02:46]} 13. h3 {[%clk 0:02:12]}  Bb7 {[%clk 0:02:41]} 14. Bf3 {[%clk 0:02:07]}  h6 {[%clk 0:02:36]} 15. Bh4 {[%clk 0:02:04]}  g5 {[%clk 0:02:31]} 16. Bg3 {[%clk 0:02:04]}  Ne4 {[%clk 0:02:32]} 17. Bh2 {[%clk 0:01:54]}  Bd6 {[%clk 0:02:23]} 18. Bxd6 {[%clk 0:01:53]}  Qxd6 {[%clk 0:02:22]} 19. Nd4 {[%clk 0:01:51]}  Rbe8 {[%clk 0:02:15]} 20. Re1 {[%clk 0:01:41]}  Qb6 {[%clk 0:02:05]} 21. Bxe4 {[%clk 0:01:28]}  dxe4 {[%clk 0:02:03]} 22. b4 {[%clk 0:01:21]}  f5 {[%clk 0:01:53]} 23. Qb3+ {[%clk 0:01:19]}  Kh7 {[%clk 0:01:52]} 24. Rad1 {[%clk 0:01:16]}  Kg6 {[%clk 0:01:16]} 25. Qa4 {[%clk 0:01:14]}  Rd8 {[%clk 0:01:08]} 26. Qb3 {[%clk 0:01:08]}  Bd5 {[%clk 0:01:02]} 27. Qc2 {[%clk 0:01:01]}  c5 {[%clk 0:00:51]} 28. bxc5 {[%clk 0:00:44]}  Qxc5 {[%clk 0:00:52]} 29. Rb1 {[%clk 0:00:43]}  Rb8 {[%clk 0:00:51]} 30. Qa4 {[%clk 0:00:38]}  Qxc3 {[%clk 0:00:44]} 31. Qa6+ {[%clk 0:00:38]}  Rf6 {[%clk 0:00:35]} 32. Qxa7 {[%clk 0:00:34]}  Rxb1 {[%clk 0:00:21]} 33. Rxb1 {[%clk 0:00:35]}  e3 {[%clk 0:00:21]} 34. Nf3 {[%clk 0:00:18]}  e2 {[%clk 0:00:15]} 35. Qe3 {[%clk 0:00:16]}  Qxe3 {[%clk 0:00:06]} 36. fxe3 {[%clk 0:00:16]}  Bxa2 {[%clk 0:00:07]} 37. Re1 {[%clk 0:00:12]}  Bc4 {[%clk 0:00:07]} 38. Kf2 {[%clk 0:00:12]}  f4 {[%clk 0:00:03]} 39. Ne5+ {[%clk 0:00:12]}  Kf5 {[%clk 0:00:03]} 40. Nxc4 {[%clk 0:00:13]}  Ke4 {[%clk 0:00:03]} 41. Rxe2 {[%clk 0:00:12]}  fxe3+ {[%clk 0:00:03]} 42. Kg3 {[%clk 0:00:12]}  Kd3 {[%clk 0:00:03]} 43. Rxe3+ {[%clk 0:00:11]}  Kxc4 {[%clk 0:00:04]} 44. Re8 {[%clk 0:00:12]}  Kd5 {[%clk 0:00:03]} 45. Kg4 {[%clk 0:00:12]}  Rf2 {[%clk 0:00:03]} 46. g3 {[%clk 0:00:13]}  Rh2 {[%clk 0:00:03]} 47. h4 {[%clk 0:00:13]}  gxh4 {[%clk 0:00:04]} 48. gxh4 {[%clk 0:00:13]}  Rh1 {[%clk 0:00:05]} 49. Kh5 {[%clk 0:00:14]}  Rh2 {[%clk 0:00:04]} 50. Re7 {[%clk 0:00:14]}  Kd6 {[%clk 0:00:04]} 51. Re8 {[%clk 0:00:14]}  Kd7 {[%clk 0:00:04]} 52. Rh8 {[%clk 0:00:15]}  Ke6 {[%clk 0:00:05]} 53. Rxh6+ {[%clk 0:00:15]}  Kf5 {[%clk 0:00:06]} 54. Rh8 {[%clk 0:00:15]}  Kf6 {[%clk 0:00:06]} 55. Rf8+ {[%clk 0:00:15]}  Kg7 {[%clk 0:00:07]} 56. Rf4 {[%clk 0:00:15]}  Ra2 {[%clk 0:00:07]} 57. Kg5 {[%clk 0:00:15]}  Ra5+ {[%clk 0:00:06]} 58. Kg4 {[%clk 0:00:16]}  Kg6 {[%clk 0:00:06]} 59. Rc4 {[%clk 0:00:16]}  Ra6 {[%clk 0:00:06]} 60. Rc5 {[%clk 0:00:16]}  Ra1 {[%clk 0:00:06]} 61. Kg3 {[%clk 0:00:16]}  Ra3+ {[%clk 0:00:06]} 62. Kg4 {[%clk 0:00:16]}  Ra4+ {[%clk 0:00:06]} 63. Kh3 {[%clk 0:00:17]}  Ra1 {[%clk 0:00:07]} 64. Rc6+ {[%clk 0:00:16]}  Kh5 {[%clk 0:00:07]} 65. Rc5+ {[%clk 0:00:16]}  Kh6 {[%clk 0:00:08]} 66. Rg5 {[%clk 0:00:15]}  Ra3+ {[%clk 0:00:07]} 67. Kg4 {[%clk 0:00:15]}  Ra4+ {[%clk 0:00:08]} 68. Kf5 {[%clk 0:00:16]}  Rxh4 {[%clk 0:00:07]} 69. Rg4 {[%clk 0:00:15]}  Rh1 {[%clk 0:00:07]} 70. Kf4 {[%clk 0:00:15]}  Kh5 {[%clk 0:00:07]} 71. Rg2 {[%clk 0:00:15]}  Ra1 {[%clk 0:00:07]} 72. Kf3 {[%clk 0:00:15]}  Ra4 {[%clk 0:00:07]} 73. Kf2 {[%clk 0:00:16]}  Ra3 {[%clk 0:00:07]} 74. Kg1 {[%clk 0:00:16]}  Kh4 {[%clk 0:00:07]} 75. Kf1 {[%clk 0:00:16]}  Ra1+ {[%clk 0:00:06]} 76. Kf2 {[%clk 0:00:16]}  Kh3 {[%clk 0:00:07]} 77. Rg3+ {[%clk 0:00:16]}  Kh4 {[%clk 0:00:07]} 78. Rg8 {[%clk 0:00:16]}  Ra2+ {[%clk 0:00:07]} 79. Kf3 {[%clk 0:00:17]}  Ra3+ {[%clk 0:00:08]} 80. Kf4 {[%clk 0:00:18]}  Ra4+ {[%clk 0:00:08]} 81. Kf5 {[%clk 0:00:18]}  Kh3 {[%clk 0:00:09]} 82. Ke5 {[%clk 0:00:18]}  Kh2 {[%clk 0:00:07]} 83. Kd5 {[%clk 0:00:18]}  Ra3 {[%clk 0:00:07]} 84. Ke4 {[%clk 0:00:18]}  Ra4+ {[%clk 0:00:07]} 85. Kf3 {[%clk 0:00:18]}  Kh1 {[%clk 0:00:05]} 86. Kf2 {[%clk 0:00:17]}  Ra2+ {[%clk 0:00:06]} 87. Kf3 {[%clk 0:00:18]}  Kh2 {[%clk 0:00:05]} 88. Rg7 {[%clk 0:00:17]}  Rb2 {[%clk 0:00:06]} 89. Ke3 {[%clk 0:00:16]}  Rb3+ {[%clk 0:00:05]} 90. Kf4 {[%clk 0:00:16]}  Ra3 {[%clk 0:00:05]} 91. Ke4 {[%clk 0:00:16]}  Kh3 {[%clk 0:00:05]} 92. Kf4 {[%clk 0:00:15]}  Ra4+ {[%clk 0:00:05]} 93. Kf3 {[%clk 0:00:16]}  Kh4 {[%clk 0:00:05]} 94. Rg8 {[%clk 0:00:15]}  Kh5 {[%clk 0:00:05]} 95. Ke3 {[%clk 0:00:14]}  Ra3+ {[%clk 0:00:05]} 96. Kf4 {[%clk 0:00:14]}  Kh6 {[%clk 0:00:06]} 97. Rg1 {[%clk 0:00:13]}  Ra4+ {[%clk 0:00:07]} 98. Kf5 {[%clk 0:00:13]}  Ra2 {[%clk 0:00:06]} 99. Kf6 {[%clk 0:00:13]}  Rf2+ {[%clk 0:00:06]} 100. Ke5 {[%clk 0:00:13]}  Rf3 {[%clk 0:00:06]} 101. Ke4 {[%clk 0:00:14]}  Ra3 {[%clk 0:00:06]} 102. Kf5 {[%clk 0:00:14]}  Ra5+ {[%clk 0:00:06]} 103. Kf6 {[%clk 0:00:14]}  Kh5 {[%clk 0:00:06]} 104. Ke6 {[%clk 0:00:13]}  Kh4 {[%clk 0:00:06]} 105. Kf6 {[%clk 0:00:13]}  Kh5 {[%clk 0:00:05]} 106. Ke6 {[%clk 0:00:13]}  Rg5 {[%clk 0:00:06]} 107. Rxg5+ {[%clk 0:00:11]}  Kxg5 {[%clk 0:00:06]} 1/2-1/2

[Event "December 12 Late 2023"]
[Site "https://www.chess.com"]
[Date "2023.12.12"]
[Round "9"]
[White "Ismayil, Malak"]
[Black "Balla, Tamas-Kristof"]
[Result "1-0"]
[Board "70"]
[TimeControl "180+1"]
[WhiteFideId "13412604"]
[BlackFideId "1208497"]
[WhiteElo "2506"]
[BlackElo "2384"]
[WhiteTeam "AZE"]
[BlackTeam "ROU"]
[WhiteClock "0:00:05"]
[BlackClock "0:00:02"]

1. e4 {[%clk 0:02:38]}  c5 {[%clk 0:02:59]} 2. Nf3 {[%clk 0:02:38]}  Nc6 {[%clk 0:03:00]} 3. Bb5 {[%clk 0:02:38]}  Nf6 {[%clk 0:03:00]} 4. e5 {[%clk 0:02:33]}  Nd5 {[%clk 0:03:00]} 5. O-O {[%clk 0:02:32]}  g6 {[%clk 0:02:56]} 6. d4 {[%clk 0:02:28]}  cxd4 {[%clk 0:02:52]} 7. Nxd4 {[%clk 0:02:29]}  Bg7 {[%clk 0:02:31]} 8. Bxc6 {[%clk 0:02:21]}  bxc6 {[%clk 0:02:30]} 9. Re1 {[%clk 0:02:18]}  O-O {[%clk 0:02:27]} 10. c4 {[%clk 0:02:17]}  Nb6 {[%clk 0:02:18]} 11. Qc2 {[%clk 0:02:04]}  Bb7 {[%clk 0:02:11]} 12. Bg5 {[%clk 0:01:56]}  a5 {[%clk 0:02:00]} 13. Nd2 {[%clk 0:01:51]}  a4 {[%clk 0:01:55]} 14. Rad1 {[%clk 0:01:50]}  h6 {[%clk 0:01:33]} 15. Bh4 {[%clk 0:01:48]}  Re8 {[%clk 0:01:27]} 16. N2f3 {[%clk 0:01:44]}  c5 {[%clk 0:01:22]} 17. Nb5 {[%clk 0:01:28]}  Bxf3 {[%clk 0:01:21]} 18. gxf3 {[%clk 0:01:29]}  Qc8 {[%clk 0:01:00]} 19. Qe4 {[%clk 0:01:21]}  Kh7 {[%clk 0:00:53]} 20. Kh1 {[%clk 0:01:16]}  d6 {[%clk 0:00:29]} 21. e6 {[%clk 0:00:41]}  Qxe6 {[%clk 0:00:23]} 22. Qxe6 {[%clk 0:00:37]}  fxe6 {[%clk 0:00:23]} 23. Nc7 {[%clk 0:00:38]}  Nxc4 {[%clk 0:00:23]} 24. b3 {[%clk 0:00:29]}  Ne5 {[%clk 0:00:18]} 25. Kg2 {[%clk 0:00:22]}  Rf8 {[%clk 0:00:17]} 26. Bxe7 {[%clk 0:00:16]}  Rac8 {[%clk 0:00:09]} 27. Bxf8 {[%clk 0:00:15]}  Rxf8 {[%clk 0:00:10]} 28. Nxe6 {[%clk 0:00:15]}  Rf6 {[%clk 0:00:06]} 29. Nxg7 {[%clk 0:00:12]}  Kxg7 {[%clk 0:00:06]} 30. bxa4 {[%clk 0:00:11]}  Nxf3 {[%clk 0:00:06]} 31. Re7+ {[%clk 0:00:11]}  Kf8 {[%clk 0:00:06]} 32. Rd7 {[%clk 0:00:11]}  Nh4+ {[%clk 0:00:06]} 33. Kf1 {[%clk 0:00:10]}  Nf3 {[%clk 0:00:06]} 34. R7xd6 {[%clk 0:00:09]}  Rf4 {[%clk 0:00:06]} 35. Rd8+ {[%clk 0:00:08]}  Kf7 {[%clk 0:00:06]} 36. a5 {[%clk 0:00:09]}  Ra4 {[%clk 0:00:06]} 37. R8d7+ {[%clk 0:00:07]}  Kf6 {[%clk 0:00:06]} 38. Rd8 {[%clk 0:00:04]}  Nd4 {[%clk 0:00:02]} 39. Rc1 {[%clk 0:00:03]}  Rxa5 {[%clk 0:00:02]} 40. Rd6+ {[%clk 0:00:02]}  Kg5 {[%clk 0:00:02]} 41. Rd5+ {[%clk 0:00:03]}  Kf4 {[%clk 0:00:02]} 42. Rdxc5 {[%clk 0:00:04]}  Rxa2 {[%clk 0:00:03]} 43. R5c4 {[%clk 0:00:04]}  Ke4 {[%clk 0:00:03]} 44. Rd1 {[%clk 0:00:04]}  Ke5 {[%clk 0:00:01]} 45. Rcxd4 {[%clk 0:00:05]}  Ra1 {[%clk 0:00:02]} 46. Rxa1 {[%clk 0:00:04]}  Kxd4 {[%clk 0:00:03]} 47. Rd1+ {[%clk 0:00:05]}  Ke5 {[%clk 0:00:02]} 48. Ke2 {[%clk 0:00:05]} 1-0